[Event "Live Chess"]
[Site "Chess.com"]
[Date "2023.05.21"]
[Round "-"]
[White "LiamBellwood"]
[Black "Doge_Dandolo"]
[Result "0-1"]
[WhiteElo "1900"]
[BlackElo "1888"]
[TimeControl "300"]
[EndTime "4:18:43 PDT"]
[Termination "Doge_Dandolo won on time"]

1. d4 {[%clk 0:04:59.5]} 1... d5 {[%clk 0:04:58.4]} 2. Nc3 {[%clk 0:04:59.1]}
2... Nf6 {[%clk 0:04:56.9]} 3. Bf4 {[%clk 0:04:58.7]} 3... c6 {[%clk 0:04:55.6]}
4. e3 {[%clk 0:04:54.1]} 4... Bf5 {[%clk 0:04:53.8]} 5. f3 {[%clk 0:04:53.7]}
5... h5 {[%clk 0:04:52.5]} 6. Bd3 {[%clk 0:04:52.5]} 6... Bxd3 {[%clk
0:04:50.9]} 7. Qxd3 {[%clk 0:04:52.4]} 7... e6 {[%clk 0:04:50.1]} 8. Nge2 {[%clk
0:04:50.1]} 8... Nbd7 {[%clk 0:04:46.5]} 9. O-O-O {[%clk 0:04:49.5]} 9... Nb6
{[%clk 0:04:44.9]} 10. e4 {[%clk 0:04:48.5]} 10... Be7 {[%clk 0:04:39.2]} 11.
Kb1 {[%clk 0:04:33.1]} 11... h4 {[%clk 0:04:22.7]} 12. g3 {[%clk 0:04:23.5]}
12... Nh5 {[%clk 0:04:17.8]} 13. Be3 {[%clk 0:04:17.4]} 13... Qc7 {[%clk
0:04:10.7]} 14. e5 {[%clk 0:04:09.4]} 14... g6 {[%clk 0:04:03.6]} 15. g4 {[%clk
0:04:01]} 15... Ng7 {[%clk 0:04:01.6]} 16. f4 {[%clk 0:04:00.6]} 16... O-O-O
{[%clk 0:03:59.6]} 17. Ng1 {[%clk 0:03:34.5]} 17... Kb8 {[%clk 0:03:53.9]} 18.
Nf3 {[%clk 0:03:33.4]} 18... Nc4 {[%clk 0:03:47.2]} 19. Bc1 {[%clk 0:03:26.6]}
19... Qb6 {[%clk 0:03:37.9]} 20. Na4 {[%clk 0:03:22.9]} 20... Qb5 {[%clk
0:03:31.9]} 21. Qb3 {[%clk 0:03:17.3]} 21... Qxb3 {[%clk 0:03:27.9]} 22. axb3
{[%clk 0:03:17.2]} 22... Nb6 {[%clk 0:03:25.9]} 23. Nxb6 {[%clk 0:03:16.5]}
23... axb6 {[%clk 0:03:24.5]} 24. c4 {[%clk 0:03:11.8]} 24... dxc4 {[%clk
0:03:20.9]} 25. bxc4 {[%clk 0:03:11.7]} 25... c5 {[%clk 0:03:06.9]} 26. d5
{[%clk 0:03:06.6]} 26... exd5 {[%clk 0:03:04.2]} 27. cxd5 {[%clk 0:03:06.5]}
27... Rd7 {[%clk 0:02:56.4]} 28. d6 {[%clk 0:03:00.3]} 28... Bd8 {[%clk
0:02:55]} 29. Nd2 {[%clk 0:02:44.7]} 29... Ne6 {[%clk 0:02:51.2]} 30. Ne4 {[%clk
0:02:31.9]} 30... Nd4 {[%clk 0:02:44.2]} 31. Be3 {[%clk 0:02:24.3]} 31... Nc6
{[%clk 0:02:41.9]} 32. Nc3 {[%clk 0:02:11.4]} 32... g5 {[%clk 0:02:35.6]} 33.
Nd5 {[%clk 0:01:58.6]} 33... gxf4 {[%clk 0:02:33.4]} 34. Bxf4 {[%clk 0:01:58.5]}
34... h3 {[%clk 0:02:24.6]} 35. Rhe1 {[%clk 0:01:49.3]} 35... Rg8 {[%clk
0:02:18.8]} 36. g5 {[%clk 0:01:43.2]} 36... Nd4 {[%clk 0:02:07]} 37. Nf6 {[%clk
0:01:32.9]} 37... Bxf6 {[%clk 0:02:04.7]} 38. exf6 {[%clk 0:01:30]} 38... Ne6
{[%clk 0:02:01.6]} 39. Rxe6 {[%clk 0:01:21.8]} 39... fxe6 {[%clk 0:02:00.3]} 40.
f7 {[%clk 0:01:21.7]} 40... Rxf7 {[%clk 0:01:56]} 41. d7+ {[%clk 0:01:20.9]}
41... Rxf4 {[%clk 0:01:49.9]} 42. d8=Q+ {[%clk 0:01:20.2]} 42... Rxd8 {[%clk
0:01:48.8]} 43. Rxd8+ {[%clk 0:01:20.1]} 43... Kc7 {[%clk 0:01:47]} 44. Rh8
{[%clk 0:01:05.4]} 44... Rg4 {[%clk 0:01:37.5]} 45. Rxh3 {[%clk 0:01:01.9]}
45... Rxg5 {[%clk 0:01:36.3]} 46. Rh7+ {[%clk 0:01:00.6]} 46... Kc6 {[%clk
0:01:34.8]} 47. h4 {[%clk 0:01:00.5]} 47... Rg2 {[%clk 0:01:32.9]} 48. h5 {[%clk
0:00:59.3]} 48... Rh2 {[%clk 0:01:31.9]} 49. h6 {[%clk 0:00:58.7]} 49... e5
{[%clk 0:01:30.5]} 50. Rh8 {[%clk 0:00:57.6]} 50... Kb5 {[%clk 0:01:25.4]} 51.
Ka2 {[%clk 0:00:55.2]} 51... e4 {[%clk 0:01:22.8]} 52. Re8 {[%clk 0:00:53.6]}
52... Rxh6 {[%clk 0:01:20.4]} 53. Rxe4 {[%clk 0:00:53.2]} 53... Rh3 {[%clk
0:01:19]} 54. b3 {[%clk 0:00:50.5]} 54... Ka5 {[%clk 0:01:13.1]} 55. Ka3 {[%clk
0:00:47.2]} 55... b5 {[%clk 0:01:08.9]} 56. Re5 {[%clk 0:00:33.6]} 56... b6
{[%clk 0:01:04.8]} 57. Re7 {[%clk 0:00:31.7]} 57... b4+ {[%clk 0:01:01.2]} 58.
Kb2 {[%clk 0:00:30.5]} 58... Rh2+ {[%clk 0:00:57.6]} 59. Kc1 {[%clk 0:00:25.9]}
59... b5 {[%clk 0:00:53.1]} 60. Re5 {[%clk 0:00:19.4]} 60... Kb6 {[%clk
0:00:46.4]} 61. Re6+ {[%clk 0:00:18.8]} 61... Kb7 {[%clk 0:00:44.7]} 62. Re5
{[%clk 0:00:18.2]} 62... Kc6 {[%clk 0:00:43.5]} 63. Re6+ {[%clk 0:00:15.3]}
63... Kd5 {[%clk 0:00:41.6]} 64. Rg6 {[%clk 0:00:13.9]} 64... c4 {[%clk
0:00:40]} 65. Rg5+ {[%clk 0:00:12.1]} 65... Kd4 {[%clk 0:00:38.3]} 66. Rg4+
{[%clk 0:00:08.9]} 66... Kc3 {[%clk 0:00:32]} 67. Rg3+ {[%clk 0:00:08.2]} 67...
Kd4 {[%clk 0:00:30.6]} 68. Rg4+ {[%clk 0:00:08]} 68... Kc5 {[%clk 0:00:29.4]}
69. Rg5+ {[%clk 0:00:07.6]} 69... Kb6 {[%clk 0:00:28]} 70. Rg6+ {[%clk
0:00:07.1]} 70... Ka5 {[%clk 0:00:26.5]} 71. bxc4 {[%clk 0:00:05.8]} 71... bxc4
{[%clk 0:00:25.2]} 72. Rg4 {[%clk 0:00:05.7]} 72... Kb5 {[%clk 0:00:20.7]} 73.
Rg5+ {[%clk 0:00:05.6]} 73... Ka4 {[%clk 0:00:19.6]} 74. Rg4 {[%clk 0:00:05.5]}
74... Kb3 {[%clk 0:00:18.4]} 75. Rg5 {[%clk 0:00:04.9]} 75... c3 {[%clk
0:00:16.5]} 76. Kd1 {[%clk 0:00:04.5]} 76... Rd2+ {[%clk 0:00:14.6]} 77. Ke1
{[%clk 0:00:03.2]} 77... Rb2 {[%clk 0:00:13]} 78. Rb5 {[%clk 0:00:02.2]} 78...
c2 {[%clk 0:00:11]} 79. Rc5 {[%clk 0:00:02.1]} 79... Rb1+ {[%clk 0:00:08.9]} 80.
Kd2 {[%clk 0:00:02]} 80... c1=Q+ {[%clk 0:00:06.9]} 81. Rxc1 {[%clk 0:00:01.2]}
81... Rxc1 {[%clk 0:00:06.2]} 82. Kxc1 {[%clk 0:00:01.1]} 82... Ka2 {[%clk
0:00:05.4]} 83. Kc2 {[%clk 0:00:01]} 83... b3+ {[%clk 0:00:04.7]} 84. Kd3 {[%clk
0:00:00.9]} 84... b2 {[%clk 0:00:04.3]} 85. Kd4 {[%clk 0:00:00.8]} 85... b1=Q
{[%clk 0:00:03.6]} 86. Kd5 {[%clk 0:00:00.7]} 86... Qd3+ {[%clk 0:00:02.6]} 87.
Kc6 {[%clk 0:00:00.6]} 87... Kb3 {[%clk 0:00:02]} 0-1

[Event "Live Chess"]
[Site "Chess.com"]
[Date "2023.05.21"]
[Round "-"]
[White "PiotrD11"]
[Black "Misha145Chess"]
[Result "1-0"]
[WhiteElo "1370"]
[BlackElo "621"]
[TimeControl "300"]
[EndTime "4:18:51 PDT"]
[Termination "PiotrD11 won on time"]

1. e4 {[%clk 0:04:59]} 1... e5 {[%clk 0:04:54.9]} 2. Nf3 {[%clk 0:04:57.3]} 2...
Nc6 {[%clk 0:04:54.1]} 3. Bb5 {[%clk 0:04:56.8]} 3... a6 {[%clk 0:04:53.3]} 4.
Ba4 {[%clk 0:04:55.3]} 4... Nf6 {[%clk 0:04:49.3]} 5. O-O {[%clk 0:04:53.2]}
5... Bb4 {[%clk 0:04:46.2]} 6. Re1 {[%clk 0:04:49.9]} 6... O-O {[%clk
0:04:44.3]} 7. c3 {[%clk 0:04:48.8]} 7... Ba5 {[%clk 0:04:43.2]} 8. d3 {[%clk
0:04:37.9]} 8... Bb6 {[%clk 0:04:41.1]} 9. Bb3 {[%clk 0:04:23]} 9... Ng4 {[%clk
0:04:32.6]} 10. d4 {[%clk 0:04:16.7]} 10... h6 {[%clk 0:04:10.3]} 11. h3 {[%clk
0:03:43.2]} 11... Nf6 {[%clk 0:03:17.6]} 12. a4 {[%clk 0:03:41.6]} 12... d6
{[%clk 0:03:13.3]} 13. Bc2 {[%clk 0:03:36.7]} 13... Ne8 {[%clk 0:02:53.3]} 14.
Be3 {[%clk 0:03:30.8]} 14... Be6 {[%clk 0:02:42.4]} 15. Nbd2 {[%clk 0:03:25.5]}
15... Nf6 {[%clk 0:02:22.3]} 16. d5 {[%clk 0:03:23.9]} 16... Bxd5 {[%clk
0:02:17.5]} 17. exd5 {[%clk 0:03:13.8]} 17... Nxd5 {[%clk 0:02:17.4]} 18. Bxb6
{[%clk 0:03:11.7]} 18... Nxb6 {[%clk 0:02:14.1]} 19. b4 {[%clk 0:03:07.3]} 19...
Re8 {[%clk 0:02:04.3]} 20. a5 {[%clk 0:03:00.3]} 20... Nd5 {[%clk 0:02:02.4]}
21. Bb3 {[%clk 0:02:54.1]} 21... Nxc3 {[%clk 0:01:53.8]} 22. Qc2 {[%clk
0:02:50]} 22... Nb5 {[%clk 0:01:27.9]} 23. Ne4 {[%clk 0:02:45.2]} 23... d5
{[%clk 0:01:21]} 24. Nc5 {[%clk 0:02:29.6]} 24... e4 {[%clk 0:01:12.1]} 25. Nxb7
{[%clk 0:02:07]} 25... Ncd4 {[%clk 0:00:45.7]} 26. Nxd4 {[%clk 0:02:05.1]} 26...
Nxd4 {[%clk 0:00:43.7]} 27. Qb2 {[%clk 0:01:52.4]} 27... Qf6 {[%clk 0:00:36.7]}
28. Rad1 {[%clk 0:01:40.8]} 28... Nxb3 {[%clk 0:00:29.7]} 29. Qxb3 {[%clk
0:01:39.3]} 29... d4 {[%clk 0:00:25]} 30. Nc5 {[%clk 0:01:31.6]} 30... Re5
{[%clk 0:00:11.6]} 31. Nd7 {[%clk 0:01:07.5]} 31... Qg5 {[%clk 0:00:08.7]} 32.
Nxe5 {[%clk 0:00:58.7]} 32... Qxe5 {[%clk 0:00:07.8]} 33. Qc4 {[%clk 0:00:49.9]}
33... e3 {[%clk 0:00:06.5]} 34. fxe3 {[%clk 0:00:45.1]} 34... dxe3 {[%clk
0:00:05.3]} 35. Rd5 {[%clk 0:00:37.5]} 35... Qg3 {[%clk 0:00:02]} 36. Qe2 {[%clk
0:00:32.4]} 1-0

[Event "Live Chess"]
[Site "Chess.com"]
[Date "2023.05.21"]
[Round "-"]
[White "friarnator"]
[Black "Duke_of_Bebington"]
[Result "1-0"]
[WhiteElo "1997"]
[BlackElo "1580"]
[TimeControl "300"]
[EndTime "4:19:00 PDT"]
[Termination "friarnator won by resignation"]

1. e4 {[%clk 0:04:57.7]} 1... e5 {[%clk 0:04:59]} 2. d4 {[%clk 0:04:55.6]} 2...
exd4 {[%clk 0:04:57.4]} 3. Nf3 {[%clk 0:04:53.2]} 3... Nc6 {[%clk 0:04:53.3]} 4.
Bc4 {[%clk 0:04:52.1]} 4... d6 {[%clk 0:04:50]} 5. c3 {[%clk 0:04:51.2]} 5...
dxc3 {[%clk 0:04:48.3]} 6. O-O {[%clk 0:04:50.5]} 6... Nf6 {[%clk 0:04:44.3]} 7.
Ng5 {[%clk 0:04:47.5]} 7... Ne5 {[%clk 0:04:33.8]} 8. Qb3 {[%clk 0:04:34.3]}
8... Qe7 {[%clk 0:04:19.5]} 9. Nxc3 {[%clk 0:04:29.7]} 9... h6 {[%clk
0:04:13.9]} 10. Nf3 {[%clk 0:04:23.1]} 10... Nxf3+ {[%clk 0:04:10]} 11. gxf3
{[%clk 0:04:23]} 11... Nd7 {[%clk 0:03:47.3]} 12. Nd5 {[%clk 0:04:18.7]} 12...
Qd8 {[%clk 0:03:39.7]} 13. Nf4 {[%clk 0:03:31.9]} 13... Ne5 {[%clk 0:03:32]} 14.
Be3 {[%clk 0:03:29]} 14... Nxf3+ {[%clk 0:03:20.9]} 15. Kh1 {[%clk 0:03:25.8]}
15... Ne5 {[%clk 0:03:19.2]} 16. Nd3 {[%clk 0:03:19.4]} 16... Nxc4 {[%clk
0:03:14.9]} 17. Qxc4 {[%clk 0:03:19.3]} 17... Be6 {[%clk 0:03:05.9]} 18. Qb5+
{[%clk 0:03:17.5]} 18... Bd7 {[%clk 0:03:00.5]} 19. Qxb7 {[%clk 0:03:16]} 19...
Be7 {[%clk 0:02:57.2]} 20. Rac1 {[%clk 0:03:05.3]} 20... c5 {[%clk 0:02:47.6]}
21. e5 {[%clk 0:03:00.1]} 21... dxe5 {[%clk 0:02:37.6]} 22. Nxe5 {[%clk
0:02:54.9]} 22... Qc8 {[%clk 0:02:29.5]} 23. Qxd7+ {[%clk 0:02:38.9]} 23... Qxd7
{[%clk 0:02:28.3]} 24. Nxd7 {[%clk 0:02:38.8]} 24... Kxd7 {[%clk 0:02:27.8]} 25.
Bxc5 {[%clk 0:02:37.7]} 25... Bxc5 {[%clk 0:02:19.8]} 26. Rxc5 {[%clk
0:02:37.6]} 26... Rhb8 {[%clk 0:02:12]} 27. Rd1+ {[%clk 0:02:33.9]} 27... Ke8
{[%clk 0:02:05.3]} 28. b3 {[%clk 0:02:15.7]} 28... Rb7 {[%clk 0:01:56.8]} 29.
Rdc1 {[%clk 0:02:11]} 29... Kd8 {[%clk 0:01:51.2]} 30. Rd5+ {[%clk 0:02:06.6]}
30... Rd7 {[%clk 0:01:49]} 31. Rdc5 {[%clk 0:01:55.9]} 31... Rd2 {[%clk
0:01:45]} 32. R1c2 {[%clk 0:01:54.5]} 32... Rxc2 {[%clk 0:01:41]} 33. Rxc2
{[%clk 0:01:54.4]} 33... Rc8 {[%clk 0:01:39.6]} 34. Rxc8+ {[%clk 0:01:53.4]}
34... Kxc8 {[%clk 0:01:38.5]} 35. Kg2 {[%clk 0:01:53.3]} 35... Kc7 {[%clk
0:01:37.9]} 36. Kf3 {[%clk 0:01:52.9]} 36... Kb6 {[%clk 0:01:37.5]} 37. Ke4
{[%clk 0:01:52.6]} 37... Kb5 {[%clk 0:01:37.1]} 38. a3 {[%clk 0:01:50.1]} 38...
a5 {[%clk 0:01:35.4]} 39. Kd5 {[%clk 0:01:47]} 39... Kb6 {[%clk 0:01:30.4]} 40.
Kd6 {[%clk 0:01:42.9]} 40... Kb5 {[%clk 0:01:29]} 41. Ke7 {[%clk 0:01:42]} 41...
f6 {[%clk 0:01:28.1]} 42. Kf7 {[%clk 0:01:41.1]} 42... Kc5 {[%clk 0:01:22.2]}
43. Kxg7 {[%clk 0:01:40]} 43... Kd4 {[%clk 0:01:18.4]} 44. Kxf6 {[%clk
0:01:35.9]} 44... Kc3 {[%clk 0:01:17.8]} 45. b4 {[%clk 0:01:31.9]} 45... axb4
{[%clk 0:01:16.4]} 46. axb4 {[%clk 0:01:31.8]} 46... Kxb4 {[%clk 0:01:16.3]} 47.
f4 {[%clk 0:01:29.7]} 47... Kc4 {[%clk 0:01:15.9]} 48. Kg6 {[%clk 0:01:26.7]}
48... Kd4 {[%clk 0:01:15.8]} 49. f5 {[%clk 0:01:26.1]} 49... Kd5 {[%clk
0:01:14.9]} 50. Kxh6 {[%clk 0:01:24.8]} 50... Ke5 {[%clk 0:01:13.8]} 51. Kg6
{[%clk 0:01:23.7]} 51... Kd6 {[%clk 0:01:12.6]} 52. f6 {[%clk 0:01:23.1]} 52...
Ke6 {[%clk 0:01:11.8]} 53. f7 {[%clk 0:01:22.6]} 53... Ke7 {[%clk 0:01:10.7]}
54. Kg7 {[%clk 0:01:22]} 54... Kd7 {[%clk 0:01:09.2]} 55. f8=Q {[%clk
0:01:21.5]} 55... Kc6 {[%clk 0:01:07.7]} 56. Qd8 {[%clk 0:01:19.8]} 1-0

[Event "Live Chess"]
[Site "Chess.com"]
[Date "2023.05.21"]
[Round "-"]
[White "WelshTiger"]
[Black "Greenbecker"]
[Result "1/2-1/2"]
[WhiteElo "2311"]
[BlackElo "1675"]
[TimeControl "300"]
[EndTime "4:19:00 PDT"]
[Termination "Game drawn by repetition"]

1. e4 {[%clk 0:04:58.6]} 1... e6 {[%clk 0:04:58.3]} 2. d4 {[%clk 0:04:57.4]}
2... d5 {[%clk 0:04:57.2]} 3. Nd2 {[%clk 0:04:55.2]} 3... dxe4 {[%clk
0:04:55.8]} 4. Nxe4 {[%clk 0:04:54.4]} 4... Bd7 {[%clk 0:04:55.3]} 5. Nf3 {[%clk
0:04:52.4]} 5... Bc6 {[%clk 0:04:54.2]} 6. Ng3 {[%clk 0:04:50.3]} 6... Nd7
{[%clk 0:04:50.5]} 7. Bd3 {[%clk 0:04:49.3]} 7... Ngf6 {[%clk 0:04:49.6]} 8. O-O
{[%clk 0:04:47.9]} 8... Bxf3 {[%clk 0:04:48.1]} 9. Qxf3 {[%clk 0:04:46.8]} 9...
c6 {[%clk 0:04:47.3]} 10. c3 {[%clk 0:04:46.3]} 10... Be7 {[%clk 0:04:46.5]} 11.
Re1 {[%clk 0:04:44.9]} 11... O-O {[%clk 0:04:45.5]} 12. Ne4 {[%clk 0:04:42.7]}
12... Nxe4 {[%clk 0:04:43.8]} 13. Qxe4 {[%clk 0:04:42.6]} 13... Nf6 {[%clk
0:04:42.9]} 14. Qe2 {[%clk 0:04:41.3]} 14... Re8 {[%clk 0:04:41.5]} 15. Bg5
{[%clk 0:04:38.8]} 15... Qd5 {[%clk 0:04:39.3]} 16. Bh4 {[%clk 0:04:37.6]} 16...
Qh5 {[%clk 0:04:32.8]} 17. Bg3 {[%clk 0:04:35.6]} 17... Qxe2 {[%clk 0:04:31.1]}
18. Rxe2 {[%clk 0:04:33.8]} 18... Rad8 {[%clk 0:04:29.8]} 19. Rae1 {[%clk
0:04:27.2]} 19... Nd5 {[%clk 0:04:28]} 20. Bb1 {[%clk 0:04:24.4]} 20... Bd6
{[%clk 0:04:24.5]} 21. Be5 {[%clk 0:04:17.8]} 21... Bxe5 {[%clk 0:04:21.1]} 22.
Rxe5 {[%clk 0:04:16.4]} 22... b5 {[%clk 0:04:03.3]} 23. g3 {[%clk 0:04:13.6]}
23... Nb6 {[%clk 0:03:53.7]} 24. b3 {[%clk 0:04:09]} 24... Nd5 {[%clk 0:03:51]}
25. Rc1 {[%clk 0:04:07.6]} 25... a5 {[%clk 0:03:36.4]} 26. Be4 {[%clk
0:04:03.1]} 26... f6 {[%clk 0:03:24.3]} 27. Rh5 {[%clk 0:03:52.8]} 27... g6
{[%clk 0:03:12.8]} 28. Rh4 {[%clk 0:03:47.6]} 28... f5 {[%clk 0:03:00.3]} 29.
Bxd5 {[%clk 0:03:46.3]} 29... cxd5 {[%clk 0:02:43.9]} 30. Rf4 {[%clk 0:03:40]}
30... Rc8 {[%clk 0:02:34.5]} 31. Rf3 {[%clk 0:03:37.6]} 31... Rc7 {[%clk
0:02:28]} 32. Kf1 {[%clk 0:03:36.7]} 32... Rec8 {[%clk 0:02:26.8]} 33. Ke2
{[%clk 0:03:36]} 33... b4 {[%clk 0:02:23]} 34. Kd2 {[%clk 0:03:34.6]} 34... Kg7
{[%clk 0:02:10.6]} 35. Re3 {[%clk 0:03:33.7]} 35... Kf6 {[%clk 0:02:07]} 36. f4
{[%clk 0:03:32.7]} 36... h6 {[%clk 0:02:05]} 37. Ree1 {[%clk 0:03:23.2]} 37...
Rxc3 {[%clk 0:01:52.7]} 38. Rxc3 {[%clk 0:03:22.3]} 38... Rxc3 {[%clk
0:01:45.8]} 39. Re2 {[%clk 0:03:21.8]} 39... g5 {[%clk 0:01:40.3]} 40. Re3
{[%clk 0:03:02.5]} 40... Rxe3 {[%clk 0:01:34]} 41. Kxe3 {[%clk 0:03:01.3]} 41...
g4 {[%clk 0:01:23.5]} 42. Kd3 {[%clk 0:02:58.4]} 42... Ke7 {[%clk 0:01:14.9]}
43. Ke3 {[%clk 0:02:57.7]} 43... Kd6 {[%clk 0:01:13.9]} 44. Kd3 {[%clk
0:02:57.4]} 44... Kc6 {[%clk 0:01:13.2]} 45. Ke3 {[%clk 0:02:56.9]} 45... Kb5
{[%clk 0:01:12]} 46. Kd3 {[%clk 0:02:56.6]} 46... a4 {[%clk 0:01:10.6]} 47. Ke3
{[%clk 0:02:56.1]} 47... a3 {[%clk 0:01:00.5]} 48. Kd3 {[%clk 0:02:55.2]} 48...
Ka5 {[%clk 0:00:56.4]} 49. Ke3 {[%clk 0:02:55.1]} 49... Kb5 {[%clk 0:00:54.8]}
50. Ke2 {[%clk 0:02:55]} 50... Ka5 {[%clk 0:00:50.6]} 51. Kd2 {[%clk 0:02:54.9]}
51... Kb5 {[%clk 0:00:49.9]} 52. Ke1 {[%clk 0:02:54.8]} 52... Ka5 {[%clk
0:00:49.1]} 53. Kf1 {[%clk 0:02:54.7]} 53... Kb5 {[%clk 0:00:48.4]} 54. Kg2
{[%clk 0:02:54.6]} 54... Kc6 {[%clk 0:00:46.3]} 55. h3 {[%clk 0:02:54.5]} 55...
h5 {[%clk 0:00:44.6]} 56. h4 {[%clk 0:02:52.6]} 56... Kb5 {[%clk 0:00:42.3]} 57.
Kf2 {[%clk 0:02:52.5]} 57... Kc6 {[%clk 0:00:41.6]} 58. Ke3 {[%clk 0:02:52.4]}
58... Kb5 {[%clk 0:00:40.6]} 59. Kd3 {[%clk 0:02:52.3]} 59... Kc6 {[%clk
0:00:39.2]} 60. Kd2 {[%clk 0:02:52.2]} 60... Kb5 {[%clk 0:00:38.6]} 61. Kc1
{[%clk 0:02:52.1]} 61... Kc6 {[%clk 0:00:37.8]} 62. Kb1 {[%clk 0:02:52]} 62...
Kb5 {[%clk 0:00:36.9]} 63. Ka1 {[%clk 0:02:51.9]} 63... Kc6 {[%clk 0:00:36.1]}
64. Kb1 {[%clk 0:02:51.8]} 64... Kb5 {[%clk 0:00:35.4]} 65. Kc1 {[%clk
0:02:51.7]} 65... Kc6 {[%clk 0:00:34.7]} 66. Kd1 {[%clk 0:02:51.6]} 66... Kb5
{[%clk 0:00:34.1]} 67. Ke1 {[%clk 0:02:51.5]} 67... Kc6 {[%clk 0:00:33.5]} 68.
Kf1 {[%clk 0:02:51.4]} 68... Kb5 {[%clk 0:00:33]} 69. Kg1 {[%clk 0:02:50]} 69...
Kc6 {[%clk 0:00:32.3]} 70. Kf2 {[%clk 0:02:48.5]} 70... Kb5 {[%clk 0:00:31.4]}
71. Ke3 {[%clk 0:02:48.3]} 71... Kc6 {[%clk 0:00:30.7]} 72. Kd3 {[%clk 0:02:48]}
72... Kb5 {[%clk 0:00:30]} 73. Kd2 {[%clk 0:02:47.6]} 73... Kc6 {[%clk
0:00:29.4]} 74. Ke3 {[%clk 0:02:47.2]} 74... Kb5 {[%clk 0:00:28.7]} 75. Kd3
{[%clk 0:02:47]} 75... Kc6 {[%clk 0:00:28.1]} 76. Kd2 {[%clk 0:02:46.9]} 76...
Kb5 {[%clk 0:00:27.6]} 77. Ke2 {[%clk 0:02:46.8]} 77... Kc6 {[%clk 0:00:27.1]}
78. Kd3 {[%clk 0:02:46.3]} 78... Kb5 {[%clk 0:00:26.5]} 79. Kd2 {[%clk 0:02:46]}
79... Kc6 {[%clk 0:00:25.9]} 80. Kd3 {[%clk 0:02:45.7]} 1/2-1/2

[Event "Live Chess"]
[Site "Chess.com"]
[Date "2023.05.21"]
[Round "-"]
[White "OxidisedLizard"]
[Black "ChessTWSS"]
[Result "1-0"]
[WhiteElo "2106"]
[BlackElo "1624"]
[TimeControl "300"]
[EndTime "4:19:09 PDT"]
[Termination "OxidisedLizard won by resignation"]

1. e4 {[%clk 0:04:58.7]} 1... c5 {[%clk 0:04:52.9]} 2. Nf3 {[%clk 0:04:56.9]}
2... Nc6 {[%clk 0:04:49.9]} 3. d4 {[%clk 0:04:55.6]} 3... cxd4 {[%clk
0:04:45.5]} 4. Nxd4 {[%clk 0:04:55.5]} 4... e5 {[%clk 0:04:39.1]} 5. Nb5 {[%clk
0:04:54.3]} 5... d6 {[%clk 0:04:33.4]} 6. c4 {[%clk 0:04:52.4]} 6... a6 {[%clk
0:04:32.4]} 7. N5c3 {[%clk 0:04:51.3]} 7... Nf6 {[%clk 0:04:22.1]} 8. Bd3 {[%clk
0:04:49.4]} 8... Be7 {[%clk 0:04:16.9]} 9. Nd5 {[%clk 0:04:46.5]} 9... Nxd5
{[%clk 0:04:13]} 10. exd5 {[%clk 0:04:46.4]} 10... Nd4 {[%clk 0:04:06.1]} 11.
O-O {[%clk 0:04:43.8]} 11... O-O {[%clk 0:04:00.1]} 12. Be3 {[%clk 0:04:40.9]}
12... h6 {[%clk 0:03:46.5]} 13. Nc3 {[%clk 0:04:35.2]} 13... Bf5 {[%clk
0:03:39.7]} 14. Ne2 {[%clk 0:04:27.8]} 14... Bxd3 {[%clk 0:03:34]} 15. Qxd3
{[%clk 0:04:27.7]} 15... Nxe2+ {[%clk 0:03:29.6]} 16. Qxe2 {[%clk 0:04:27.6]}
16... f5 {[%clk 0:03:23.1]} 17. f4 {[%clk 0:04:22.1]} 17... Bf6 {[%clk
0:03:17.5]} 18. Rac1 {[%clk 0:04:16.8]} 18... e4 {[%clk 0:03:09.7]} 19. b4
{[%clk 0:04:12.2]} 19... a5 {[%clk 0:03:04.6]} 20. a3 {[%clk 0:04:10.4]} 20...
axb4 {[%clk 0:03:00.9]} 21. axb4 {[%clk 0:04:10.3]} 21... Ra4 {[%clk 0:02:57.1]}
22. Qd2 {[%clk 0:04:05.3]} 22... Bh4 {[%clk 0:02:35.4]} 23. c5 {[%clk
0:03:39.8]} 23... dxc5 {[%clk 0:02:27.9]} 24. bxc5 {[%clk 0:03:39.7]} 24... Qa8
{[%clk 0:02:13.5]} 25. d6 {[%clk 0:02:58.5]} 25... Ra2 {[%clk 0:02:03.5]} 26.
Rc2 {[%clk 0:02:57.7]} 26... Rxc2 {[%clk 0:01:58.4]} 27. Qxc2 {[%clk 0:02:57.6]}
27... Qa7 {[%clk 0:01:48.5]} 28. g3 {[%clk 0:02:54.2]} 28... Ra8 {[%clk
0:01:46.5]} 29. gxh4 {[%clk 0:02:44.3]} 29... Qa2 {[%clk 0:01:39.7]} 30. Qxa2+
{[%clk 0:02:41.4]} 30... Rxa2 {[%clk 0:01:36.6]} 31. d7 {[%clk 0:02:38.5]} 31...
Ra8 {[%clk 0:01:33.3]} 32. Rd1 {[%clk 0:02:33.6]} 32... Rd8 {[%clk 0:01:32.6]}
33. c6 {[%clk 0:02:27.9]} 33... bxc6 {[%clk 0:01:31.1]} 34. Bb6 {[%clk
0:02:27.1]} 34... Rb8 {[%clk 0:01:05.7]} 35. d8=Q+ {[%clk 0:02:25.2]} 35... Rxd8
{[%clk 0:01:05.2]} 36. Rxd8+ {[%clk 0:02:24.3]} 36... Kh7 {[%clk 0:01:04.2]} 37.
Rc8 {[%clk 0:02:23.1]} 37... g5 {[%clk 0:01:03.1]} 38. hxg5 {[%clk 0:02:21.5]}
38... hxg5 {[%clk 0:01:03]} 39. fxg5 {[%clk 0:02:20.1]} 39... Kg6 {[%clk
0:01:02.9]} 40. Rxc6+ {[%clk 0:02:19.1]} 40... Kxg5 {[%clk 0:01:02.8]} 41. Kf2
{[%clk 0:02:16]} 41... Kf4 {[%clk 0:01:02.1]} 42. Bc7+ {[%clk 0:02:14.1]} 42...
Kg4 {[%clk 0:01:00.9]} 43. Ke3 {[%clk 0:02:10.8]} 43... Kg5 {[%clk 0:00:59.4]}
44. Bf4+ {[%clk 0:02:09.2]} 44... Kg4 {[%clk 0:00:58.4]} 45. Rg6+ {[%clk
0:02:06.4]} 45... Kh3 {[%clk 0:00:56.8]} 46. Rg5 {[%clk 0:02:03.9]} 46... Kh4
{[%clk 0:00:54.4]} 47. Rxf5 {[%clk 0:02:03.2]} 47... Kh3 {[%clk 0:00:53.5]} 48.
Kxe4 {[%clk 0:02:02.5]} 48... Kg4 {[%clk 0:00:53.4]} 49. Rg5+ {[%clk 0:01:57.5]}
49... Kh4 {[%clk 0:00:53.3]} 50. Rg3 {[%clk 0:01:53.2]} 50... Kh5 {[%clk
0:00:51.7]} 51. Bg5 {[%clk 0:01:50.4]} 51... Kg6 {[%clk 0:00:50.9]} 52. Kf4
{[%clk 0:01:47.9]} 52... Kf7 {[%clk 0:00:43.7]} 53. Bd8 {[%clk 0:01:44.4]} 53...
Ke6 {[%clk 0:00:42.6]} 54. h4 {[%clk 0:01:42.7]} 54... Kd5 {[%clk 0:00:42.5]}
55. h5 {[%clk 0:01:42.2]} 55... Kc4 {[%clk 0:00:42.4]} 56. h6 {[%clk 0:01:42]}
56... Kd5 {[%clk 0:00:42.3]} 57. h7 {[%clk 0:01:41.7]} 57... Ke6 {[%clk
0:00:42.2]} 58. h8=Q {[%clk 0:01:40.2]} 58... Kd5 {[%clk 0:00:41.1]} 59. Qe5+
{[%clk 0:01:39.3]} 59... Kc6 {[%clk 0:00:40.3]} 60. Rc3+ {[%clk 0:01:38.1]} 1-0